[Event "6th Cattolica Open 2019"]
[Site "Cattolica"]
[Date "2019.06.12"]
[Round "6.10"]
[White "Yankelevich, Lev"]
[Black "Drazic, Sinisa"]
[Result "1/2-1/2"]
[ECO "D20"]
[WhiteElo "2484"]
[BlackElo "2365"]
[Annotator "ChessBase"]
[PlyCount "141"]
[EventDate "2019.06.08"]
[EventType "swiss"]
[EventCountry "ITA"]
[SourceTitle "playchess.com"]
[Source "ChessBase"]
[SourceQuality "1"]
[TimeControl "40/5400+30:900+30"]

1. d4 {[%emt 0:00:00]} d5 {[%emt 0:02:43]} 2. c4 {[%emt 0:00:00]} dxc4 {[%emt 0:00:03]} 3. e4 {[%emt 0:00:00]} Nf6 {[%emt 0:00:06]} 4. e5 {[%emt 0:00:00]} Nd5 {[%emt 0:00:04]} 5. Bxc4 {[%emt 0:00:00]} Nb6 {[%emt 0:00:38]} 6. Bd3 {[%emt 0:00:58]} Nc6 {[%emt 0:00:16]} 7. Ne2 {[%emt 0:00:06]} Bg4 {[%emt 0:03:55]} 8. Be3 {[%emt 0:06:02]} e6 {[%emt 0:02:26]} 9. Nbc3 {[%emt 0:00:12]} Qd7 {[%emt 0:06:49]} 10. O-O {[%emt 0:02:29]} Nb4 {[%emt 0:03:44]} 11. Be4 {[%emt 0:03:18]} N4d5 {[%emt 0:00:58]} 12. Qc1 {[%emt 0:11:14]} Bf5 {[%emt 0:08:46]} 13. Ng3 {[%emt 0:05:08]} c6 {[%emt 0:02:37]} 14. Bf3 {[%emt 0:10:07]} Bg6 {[%emt 0:02:25]} 15. Nce4 {[%emt 0:01:43]} Nxe3 {[%emt 0:06:34]} 16. fxe3 {[%emt 0:03:10]} Be7 {[%emt 0:00:05]} 17. Nc5 {[%emt 0:14:42]} Bxc5 {[%emt 0:00:19]} 18. dxc5 {[%emt 0:00:05]} Nd5 {[%emt 0:00:21]} 19. e4 {[%emt 0:00:05]} Nc7 {[%emt 0:01:48]} 20. Rd1 {[%emt 0:14:04]} Qe7 {[%emt 0:00:07]} 21. Qe3 {[%emt 0:02:50]} O-O {[%emt 0:00:35]} 22. Rd2 {[%emt 0:00:38]} Rad8 {[%emt 0:01:54]} 23. Rad1 {[%emt 0:00:16]} Rxd2 {[%emt 0:00:09]} 24. Rxd2 {[%emt 0:00:03]} Rd8 {[%emt 0:00:28]} 25. b4 {[%emt 0:03:13]} a5 {[%emt 0:08:42]} 26. a3 {[%emt 0:00:03]} h6 {[%emt 0:01:26]} 27. Be2 {[%emt 0:00:53]} axb4 {[%emt 0:00:25]} 28. axb4 {[%emt 0:02:05]} Kf8 {[%emt 0:03:21]} 29. h3 {[%emt 0:02:11]} Ne8 {[%emt 0:01:52]} 30. Nf1 {[%emt 0:01:45]} Ra8 {[%emt 0:01:08]} 31. Rd1 {[%emt 0:04:20]} Ra4 {[%emt 0:02:01]} 32. Rd4 {[%emt 0:03:12]} Qc7 {[%emt 0:03:57]} 33. b5 {[%emt 0:03:25]} Ra5 {[%emt 0:01:35]} 34. b6 {[%emt 0:00:28]} Qxe5 {[%emt 0:00:22]} 35. Rd7 {[%emt 0:00:07]} Rxc5 {[%emt 0:00:29]} 36. Rxb7 {[%emt 0:01:52]} Rc3 {[%emt 0:01:59]} 37. Qf2 {[%emt 0:00:05]} Kg8 {[%emt 0:04:11]} 38. Ra7 {[%emt 0:01:03]} Rb3 {[%emt 0:03:49]} 39. b7 {[%emt 0:00:23]} Kh7 {[%emt 0:02:34]} 40. Ra8 {[%emt 0:00:00]} Rxb7 {[%emt 0:00:00]} 41. Rxe8 {[%emt 0:00:58]} Bxe4 {[%emt 0:06:41]} 42. Qe3 {[%emt 0:01:34]} Qd5 {[%emt 0:00:17]} 43. Bf3 {[%emt 0:03:50]} Bxf3 {[%emt 0:00:04]} 44. Qxf3 {[%emt 0:00:03]} Qxf3 {[%emt 0:05:34]} 45. gxf3 {[%emt 0:00:04]} Rb1 {[%emt 0:00:04]} 46. Rc8 {[%emt 0:00:46]} Rc1 {[%emt 0:00:02]} 47. Kf2 {[%emt 0:00:03]} g5 {[%emt 0:00:53]} 48. Ne3 {[%emt 0:01:49]} h5 {[%emt 0:00:12]} 49. Ra8 {[%emt 0:01:41]} Kg7 {[%emt 0:01:08]} 50. Ra4 {[%emt 0:01:36]} f5 {[%emt 0:00:48]} 51. f4 {[%emt 0:02:52]} gxf4 {[%emt 0:03:48]} 52. Rxf4 {[%emt 0:00:04]} Kf6 {[%emt 0:00:12]} 53. Ra4 {[%emt 0:00:47]} Rc3 {[%emt 0:26:06]} 54. Ra8 {[%emt 0:01:16]} Ke5 {[%emt 0:00:00]} 55. h4 {[%emt 0:00:34]} c5 {[%emt 0:00:00]} 56. Rh8 {[%emt 0:00:31]} Ke4 {[%emt 0:00:00]} 57. Nd1 {[%emt 0:02:19]} Rc2+ {[%emt 0:00:00]} 58. Ke1 {[%emt 0:00:05]} Kf3 {[%emt 0:00:00]} 59. Rxh5 {[%emt 0:00:09]} Re2+ {[%emt 0:00:00]} 60. Kf1 {[%emt 0:00:01]} Rh2 {[%emt 0:00:00]} 61. Ke1 {[%emt 0:00:40]} c4 {[%emt 0:00:00]} 62. Rh8 {[%emt 0:01:29]} e5 {[%emt 0:00:00]} 63. Ra8 {[%emt 0:03:54]} Rxh4 {[%emt 0:00:00]} 64. Ra3+ {[%emt 0:00:03]} Ke4 {[%emt 0:00:00]} 65. Nc3+ {[%emt 0:00:14]} Kd3 {[%emt 0:00:00]} 66. Ne2+ {[%emt 0:01:21]} Kc2 {[%emt 0:00:00]} 67. Rc3+ {[%emt 0:03:17]} Kb2 {[%emt 0:00:00]} 68. Kd2 {[%emt 0:04:45]} Re4 {[%emt 0:00:00]} 69. Rf3 {[%emt 0:00:00]} f4 {[%emt 0:00:00]} 70. Rh3 {[%emt 0:00:00]} Re3 {[%emt 0:01:52]} 71. Rxe3 {[%emt 0:00:00]} 1/2-1/2

[Event "6th Cattolica Open 2019"]
[Site "Cattolica"]
[Date "2019.06.12"]
[Round "6.11"]
[White "Gilevych, Artem"]
[Black "Lumachi, Gabriele"]
[Result "1/2-1/2"]
[ECO "D06"]
[WhiteElo "2448"]
[BlackElo "2286"]
[Annotator "NA"]
[PlyCount "43"]
[EventDate "2019.06.08"]
[EventType "swiss"]
[EventCountry "ITA"]
[SourceTitle "playchess.com"]
[Source "ChessBase"]
[SourceQuality "1"]
[TimeControl "40/5400+30:900+30"]

1. d4 {[%emt 0:00:00]} d5 {[%emt 1:30:30]} 2. c4 {[%emt 0:00:00]} c5 {[%emt 0:00:00]} 3. Nf3 {[%emt 0:07:11]} cxd4 {[%emt 0:00:00]} 4. cxd5 {[%emt 0:02:19]} Qxd5 {[%emt 0:00:00]} 5. Nc3 {[%emt 0:00:21]} Qa5 {[%emt 0:00:00]} 6. Nxd4 {[%emt 0:00:45]} Nf6 {[%emt 0:00:00]} 7. g3 {[%emt 0:04:16]} e5 {[%emt 0:00:00]} 8. Nb3 {[%emt 0:02:38]} Qc7 {[%emt 0:00:00]} 9. Bg2 {[%emt 0:00:36]} Bb4 {[%emt 0:00:00]} 10. Bd2 {[%emt 0:01:57]} O-O {[%emt 0:00:00]} 11. O-O {[%emt 0:00:27]} Nc6 {[%emt 0:00:00]} 12. Rc1 {[%emt 0:16:05]} Rd8 {[%emt 0:00:00]} 13. Qe1 {[%emt 0:00:05]} Qe7 {[%emt 0:00:00]} 14. a3 {[%emt 0:21:57]} Be6 {[%emt 0:00:00]} 15. axb4 {[%emt 0:00:38]} Bxb3 {[%emt 0:00:00]} 16. Bg5 {[%emt 0:02:08]} h6 {[%emt 0:00:00]} 17. Bxf6 {[%emt 0:18:04]} Qxf6 {[%emt 0:00:00]} 18. b5 {[%emt 0:04:21]} Nd4 {[%emt 0:00:00]} 19. Bxb7 {[%emt 0:00:48]} Rab8 {[%emt 0:00:00]} 20. Be4 {[%emt 0:00:06]} Qb6 {[%emt 0:00:00]} 21. e3 {[%emt 0:03:56]} Nxb5 {[%emt 0:00:00]} 22. Nxb5 {[%emt 0:00:08]} 1/2-1/2

[Event "6th Cattolica Open 2019"]
[Site "Cattolica"]
[Date "2019.06.12"]
[Round "7.3"]
[White "Rychagov, Andrey"]
[Black "Mareco, Sandro"]
[Result "1/2-1/2"]
[ECO "D30"]
[WhiteElo "2520"]
[BlackElo "2643"]
[Annotator "RC"]
[PlyCount "48"]
[EventDate "2019.06.08"]
[EventType "swiss"]
[EventCountry "ITA"]
[SourceTitle "playchess.com"]
[Source "ChessBase"]
[SourceQuality "1"]
[TimeControl "40/5400+30:900+30"]

1. d4 {[%emt 0:00:00]} Nf6 {[%emt 0:00:00]} 2. c4 {[%emt 0:00:00]} e6 {[%emt 0:00:00]} 3. Nf3 {[%emt 0:00:00]} d5 {[%emt 0:00:00]} 4. e3 {[%emt 0:02:22]} a6 {[%emt 0:01:28]} 5. Nc3 {[%emt 0:05:07]} b6 {[%emt 0:02:31]} 6. Qa4+ {[%emt 0:09:25]} c6 {[%emt 0:04:19]} 7. cxd5 {[%emt 0:03:56]} b5 {[%emt 0:09:59]} 8. Qd1 {[%emt 0:11:21]} cxd5 {[%emt 0:01:06]} 9. Bd2 {[%emt 0:04:02]} Bd6 {[%emt 0:01:27]} 10. Bd3 {[%emt 0:03:08]} O-O {[%emt 0:01:57]} 11. O-O {[%emt 0:01:14]} Bb7 {[%emt 0:01:35]} 12. a3 {[%emt 0:06:24]} Nc6 {[%emt 0:01:27]} 13. Na2 {[%emt 0:02:00]} Qe7 {[%emt 0:02:06]} 14. Bc3 {[%emt 0:07:00]} Ne4 {[%emt 0:12:46]} 15. Qe1 {[%emt 0:01:55]} Rfc8 {[%emt 0:04:13]} 16. Rc1 {[%emt 0:08:20]} Nxc3 {[%emt 0:00:54]} 17. Nxc3 {[%emt 0:02:45]} Na5 {[%emt 0:08:46]} 18. e4 {[%emt 0:03:43]} dxe4 {[%emt 0:02:15]} 19. Bxe4 {[%emt 0:00:47]} Nc4 {[%emt 0:00:24]} 20. Qe2 {[%emt 0:01:19]} Bf4 {[%emt 0:03:46]} 21. Ra1 {[%emt 0:02:17]} Bxe4 {[%emt 0:03:28]} 22. Nxe4 {[%emt 0:00:42]} Nb6 {[%emt 0:02:03]} 23. g3 {[%emt 0:01:01]} Bd6 {[%emt 0:00:07]} 24. Rac1 {[%emt 0:01:46]} h6 {[%emt 0:35:23]} 1/2-1/2

[Event "6th Cattolica Open 2019"]
[Site "Cattolica"]
[Date "2019.06.12"]
[Round "7.5"]
[White "Repka, Christopher"]
[Black "Basso, Pier Luigi"]
[Result "1/2-1/2"]
[ECO "C67"]
[WhiteElo "2482"]
[BlackElo "2539"]
[Annotator "ChessBase"]
[PlyCount "49"]
[EventDate "2019.06.08"]
[EventType "swiss"]
[EventCountry "ITA"]
[SourceTitle "playchess.com"]
[Source "ChessBase"]
[SourceQuality "1"]
[TimeControl "40/5400+30:900+30"]

1. e4 {[%emt 0:02:10]} e5 {[%emt 0:00:00]} 2. Nf3 {[%emt 0:00:09]} Nc6 {[%emt 0:00:00]} 3. Bb5 {[%emt 0:00:12]} Nf6 {[%emt 0:00:00]} 4. O-O {[%emt 0:00:07]} Nxe4 {[%emt 0:00:00]} 5. d4 {[%emt 0:00:52]} Nd6 {[%emt 0:00:48]} 6. Bxc6 {[%emt 0:02:49]} dxc6 {[%emt 0:00:10]} 7. dxe5 {[%emt 0:00:02]} Nf5 {[%emt 0:00:11]} 8. Qxd8+ {[%emt 0:00:03]} Kxd8 {[%emt 0:00:07]} 9. h3 {[%emt 0:01:10]} Ke8 {[%emt 0:00:13]} 10. Nc3 {[%emt 0:00:42]} h5 {[%emt 0:00:10]} 11. Bf4 {[%emt 0:01:08]} Be7 {[%emt 0:00:25]} 12. Rad1 {[%emt 0:00:31]} Be6 {[%emt 0:00:26]} 13. Ng5 {[%emt 0:01:22]} Rh6 {[%emt 0:00:36]} 14. g3 {[%emt 0:00:54]} Bxg5 {[%emt 0:01:27]} 15. Bxg5 {[%emt 0:00:06]} Rg6 {[%emt 0:00:08]} 16. h4 {[%emt 0:00:02]} f6 {[%emt 0:00:26]} 17. exf6 {[%emt 0:00:03]} gxf6 {[%emt 0:00:07]} 18. Bf4 {[%emt 0:00:03]} Nxh4 {[%emt 0:00:39]} 19. f3 {[%emt 0:00:17]} Rd8 {[%emt 0:03:40]} 20. Rde1 {[%emt 0:02:42]} Kd7 {[%emt 0:04:07]} 21. Rd1+ {[%emt 0:01:26]} Kc8 {[%emt 0:04:00]} 22. Rxd8+ {[%emt 0:00:12]} Kxd8 {[%emt 0:00:05]} 23. Kf2 {[%emt 0:00:03]} Nf5 {[%emt 0:00:52]} 24. Rh1 {[%emt 0:00:04]} Ng7 {[%emt 0:00:36]} 25. Ne2 {[%emt 0:01:47]} 1/2-1/2

[Event "6th Cattolica Open 2019"]
[Site "Cattolica"]
[Date "2019.06.12"]
[Round "7.7"]
[White "Corvi, Marco"]
[Black "Kharitonov, Alexandr"]
[Result "1/2-1/2"]
[ECO "B19"]
[WhiteElo "2253"]
[BlackElo "2547"]
[Annotator "ChessBase"]
[PlyCount "52"]
[EventDate "2019.06.08"]
[EventType "swiss"]
[EventCountry "ITA"]
[SourceTitle "playchess.com"]
[Source "ChessBase"]
[SourceQuality "1"]
[TimeControl "40/5400+30:900+30"]

1. e4 {[%emt 0:00:34]} c6 {[%emt 0:00:00]} 2. d4 {[%emt 0:00:10]} d5 {[%emt 0:00:00]} 3. Nd2 {[%emt 0:00:36]} dxe4 {[%emt 0:00:00]} 4. Nxe4 {[%emt 0:00:05]} Bf5 {[%emt 0:00:00]} 5. Ng3 {[%emt 0:00:36]} Bg6 {[%emt 0:00:04]} 6. h4 {[%emt 0:01:39]} h6 {[%emt 0:00:06]} 7. Nf3 {[%emt 0:00:34]} Nd7 {[%emt 0:00:16]} 8. h5 {[%emt 0:00:24]} Bh7 {[%emt 0:00:05]} 9. Bd3 {[%emt 0:00:12]} Bxd3 {[%emt 0:00:07]} 10. Qxd3 {[%emt 0:00:06]} e6 {[%emt 0:00:14]} 11. Bd2 {[%emt 0:01:44]} Ngf6 {[%emt 0:00:12]} 12. O-O-O {[%emt 0:00:50]} Be7 {[%emt 0:00:14]} 13. Kb1 {[%emt 0:03:30]} O-O {[%emt 0:03:09]} 14. Ne4 {[%emt 0:06:59]} Nxe4 {[%emt 0:00:28]} 15. Qxe4 {[%emt 0:00:03]} Nf6 {[%emt 0:00:06]} 16. Qe2 {[%emt 0:04:37]} Qd5 {[%emt 0:00:27]} 17. Ne5 {[%emt 0:08:25]} Qe4 {[%emt 0:00:38]} 18. Qxe4 {[%emt 0:03:40]} Nxe4 {[%emt 0:00:05]} 19. Be3 {[%emt 0:01:33]} Rfd8 {[%emt 0:01:36]} 20. g4 {[%emt 0:02:50]} Rac8 {[%emt 0:15:36]} 21. f3 {[%emt 0:03:33]} Nf6 {[%emt 0:00:15]} 22. Bc1 {[%emt 0:07:02]} Nd7 {[%emt 0:02:36]} 23. f4 {[%emt 0:03:51]} Nxe5 {[%emt 0:08:48]} 24. dxe5 {[%emt 0:00:06]} b5 {[%emt 0:00:17]} 25. Be3 {[%emt 0:07:29]} a6 {[%emt 0:00:05]} 26. Rxd8+ {[%emt 0:05:27]} Rxd8 {[%emt 0:00:04]} 1/2-1/2

[Event "6th Cattolica Open 2019"]
[Site "Cattolica"]
[Date "2019.06.12"]
[Round "7.8"]
[White "Ankit, R. Rajpara"]
[Black "Mezentsev, Ivan"]
[Result "1-0"]
[ECO "D30"]
[WhiteElo "2447"]
[BlackElo "2281"]
[Annotator "NA"]
[PlyCount "160"]
[EventDate "2019.06.08"]
[EventType "swiss"]
[EventCountry "ITA"]
[SourceTitle "playchess.com"]
[Source "ChessBase"]
[SourceQuality "1"]
[TimeControl "40/5400+30:900+30"]

1. d4 {[%emt 0:01:30]} d5 {[%emt 0:00:00]} 2. c4 {[%emt 0:00:10]} e6 {[%emt 0:00:04]} 3. Nf3 {[%emt 0:00:10]} a6 {[%emt 0:00:21]} 4. Bg5 {[%emt 0:00:09]} Be7 {[%emt 0:00:24]} 5. Bxe7 {[%emt 0:00:23]} Qxe7 {[%emt 0:00:15]} 6. Nbd2 {[%emt 0:00:33]} Nf6 {[%emt 0:00:14]} 7. e3 {[%emt 0:00:38]} O-O {[%emt 0:00:13]} 8. Qc2 {[%emt 0:01:31]} c5 {[%emt 0:03:06]} 9. dxc5 {[%emt 0:08:38]} Qxc5 {[%emt 0:00:23]} 10. Bd3 {[%emt 0:01:51]} Nc6 {[%emt 0:00:24]} 11. a3 {[%emt 0:01:20]} dxc4 {[%emt 0:06:01]} 12. Qxc4 {[%emt 0:02:47]} Qxc4 {[%emt 0:00:53]} 13. Nxc4 {[%emt 0:00:15]} b5 {[%emt 0:00:54]} 14. Nb6 {[%emt 0:00:53]} Rb8 {[%emt 0:00:08]} 15. Nxc8 {[%emt 0:00:07]} Rfxc8 {[%emt 0:00:21]} 16. Ke2 {[%emt 0:00:30]} Kf8 {[%emt 0:00:21]} 17. Rhc1 {[%emt 0:01:39]} Ke7 {[%emt 0:04:25]} 18. Rc2 {[%emt 0:23:23]} Na7 {[%emt 0:03:34]} 19. Rxc8 {[%emt 0:03:10]} Nxc8 {[%emt 0:01:06]} 20. Rc1 {[%emt 0:03:05]} Nb6 {[%emt 0:15:39]} 21. Ne5 {[%emt 0:02:42]} Ra8 {[%emt 0:09:51]} 22. Nc6+ {[%emt 0:11:07]} Kd6 {[%emt 0:01:31]} 23. Nb4 {[%emt 0:00:58]} Nfd5 {[%emt 0:09:25]} 24. Rc6+ {[%emt 0:06:11]} Kd7 {[%emt 0:00:58]} 25. Be4 {[%emt 0:03:19]} Nc4 {[%emt 0:09:25]} 26. Nxd5 {[%emt 0:07:32]} exd5 {[%emt 0:00:05]} 27. Bxd5 {[%emt 0:00:08]} Ra7 {[%emt 0:00:42]} 28. a4 {[%emt 0:09:50]} Ne5 {[%emt 0:20:32]} 29. Rc2 {[%emt 0:00:50]} Kd6 {[%emt 0:01:04]} 30. Bb3 {[%emt 0:01:08]} Nc6 {[%emt 0:00:33]} 31. axb5 {[%emt 0:02:23]} axb5 {[%emt 0:01:06]} 32. Rc3 {[%emt 0:01:15]} f6 {[%emt 0:00:52]} 33. Bc2 {[%emt 0:01:22]} g6 {[%emt 0:02:09]} 34. Bd3 {[%emt 0:00:22]} b4 {[%emt 0:01:28]} 35. Rc2 {[%emt 0:00:17]} Ra1 {[%emt 0:01:00]} 36. Be4 {[%emt 0:02:10]} Na5 {[%emt 0:00:17]} 37. h4 {[%emt 0:01:53]} b3 {[%emt 0:02:01]} 38. Rd2+ {[%emt 0:00:14]} Kc5 {[%emt 0:00:13]} 39. Bd5 {[%emt 0:00:39]} Rc1 {[%emt 0:02:26]} 40. Bg8 {[%emt 0:00:00]} Nc4 {[%emt 0:00:00]} 41. Bxc4 {[%emt 0:02:01]} Kxc4 {[%emt 0:06:54]} 42. e4 {[%emt 0:00:51]} Rh1 {[%emt 0:00:45]} 43. g3 {[%emt 0:00:15]} Rc1 {[%emt 0:01:06]} 44. f4 {[%emt 0:01:56]} Rg1 {[%emt 0:00:36]} 45. Kf2 {[%emt 0:00:08]} Rh1 {[%emt 0:00:15]} 46. e5 {[%emt 0:00:38]} fxe5 {[%emt 0:01:02]} 47. fxe5 {[%emt 0:00:05]} Ra1 {[%emt 0:02:21]} 48. Kf3 {[%emt 0:06:30]} Rf1+ {[%emt 0:01:31]} 49. Ke3 {[%emt 0:00:22]} Rf7 {[%emt 0:01:41]} 50. Ke4 {[%emt 0:02:20]} Rf1 {[%emt 0:00:22]} 51. Rd4+ {[%emt 0:00:06]} Kc5 {[%emt 0:00:08]} 52. Rd3 {[%emt 0:00:08]} Rf2 {[%emt 0:00:51]} 53. Rxb3 {[%emt 0:00:31]} Re2+ {[%emt 0:00:05]} 54. Kf4 {[%emt 0:00:22]} Kd4 {[%emt 0:00:30]} 55. Rb4+ {[%emt 0:01:18]} Kd5 {[%emt 0:00:06]} 56. Rb7 {[%emt 0:01:09]} Rf2+ {[%emt 0:01:18]} 57. Ke3 {[%emt 0:00:29]} Rc2 {[%emt 0:01:00]} 58. Rxh7 {[%emt 0:01:29]} Kxe5 {[%emt 0:00:07]} 59. Rb7 {[%emt 0:00:12]} Kf5 {[%emt 0:02:14]} 60. Rb6 {[%emt 0:00:52]} Rh2 {[%emt 0:00:49]} 61. Kf3 {[%emt 0:00:30]} g5 {[%emt 0:00:42]} 62. Rb5+ {[%emt 0:00:07]} Kf6 {[%emt 0:00:05]} 63. Rxg5 {[%emt 0:01:16]} Rxb2 {[%emt 0:00:05]} 64. Kg4 {[%emt 0:00:45]} Rb4+ {[%emt 0:00:08]} 65. Kh5 {[%emt 0:00:23]} Kf7 {[%emt 0:00:05]} 66. g4 {[%emt 0:00:38]} Rb6 {[%emt 0:00:08]} 67. Ra5 {[%emt 0:00:18]} Kg7 {[%emt 0:00:05]} 68. Ra7+ {[%emt 0:00:22]} Kh8 {[%emt 0:00:07]} 69. g5 {[%emt 0:00:07]} Rb4 {[%emt 0:00:14]} 70. g6 {[%emt 0:00:18]} Kg8 {[%emt 0:00:08]} 71. Kg5 {[%emt 0:00:08]} Rb5+ {[%emt 0:00:21]} 72. Kh6 {[%emt 0:00:12]} Rb8 {[%emt 0:00:05]} 73. h5 {[%emt 0:00:17]} Rc8 {[%emt 0:00:04]} 74. Ra5 {[%emt 0:00:19]} Kf8 {[%emt 0:00:31]} 75. Kh7 {[%emt 0:00:22]} Rc7+ {[%emt 0:00:38]} 76. Kh8 {[%emt 0:00:10]} Rc8 {[%emt 0:00:06]} 77. Rf5+ {[%emt 0:00:15]} Ke7+ {[%emt 0:00:06]} 78. Kh7 {[%emt 0:00:05]} Ke6 {[%emt 0:00:07]} 79. Rf1 {[%emt 0:00:08]} Rc5 {[%emt 0:00:05]} 80. h6 {[%emt 0:00:10]} Kd5 {[%emt 0:00:33]} 1-0

[Event "6th Cattolica Open 2019"]
[Site "Cattolica"]
[Date "2019.06.12"]
[Round "7.10"]
[White "Lumachi, Gabriele"]
[Black "Yankelevich, Lev"]
[Result "0-1"]
[ECO "A48"]
[WhiteElo "2286"]
[BlackElo "2484"]
[Annotator "ChessBase"]
[PlyCount "104"]
[EventDate "2019.06.08"]
[EventType "swiss"]
[EventCountry "ITA"]
[SourceTitle "playchess.com"]
[Source "ChessBase"]
[SourceQuality "1"]
[TimeControl "40/5400+30:900+30"]

1. d4 {[%emt 0:00:00]} Nf6 {[%emt 0:00:00]} 2. Bf4 {[%emt 0:00:00]} c5 {[%emt 0:02:19]} 3. e3 {[%emt 0:00:00]} g6 {[%emt 0:02:46]} 4. c3 {[%emt 0:03:34]} cxd4 {[%emt 0:06:57]} 5. exd4 {[%emt 0:00:46]} Bg7 {[%emt 0:00:04]} 6. Nf3 {[%emt 0:02:35]} O-O {[%emt 0:00:00]} 7. Be2 {[%emt 0:01:03]} d6 {[%emt 0:00:04]} 8. O-O {[%emt 0:01:41]} Qb6 {[%emt 0:00:04]} 9. Qc1 {[%emt 0:06:25]} Nc6 {[%emt 0:00:42]} 10. Na3 {[%emt 0:04:29]} d5 {[%emt 0:02:10]} 11. Nc2 {[%emt 0:14:37]} Ne4 {[%emt 0:01:29]} 12. Ne3 {[%emt 0:02:29]} Be6 {[%emt 0:03:38]} 13. Nd1 {[%emt 0:17:02]} Rfe8 {[%emt 0:04:01]} 14. Qe3 {[%emt 0:03:34]} Bf5 {[%emt 0:06:21]} 15. h3 {[%emt 0:05:25]} Rad8 {[%emt 0:00:53]} 16. Bh2 {[%emt 0:04:16]} Bc8 {[%emt 0:03:16]} 17. Bd3 {[%emt 0:02:26]} Nd6 {[%emt 0:02:23]} 18. Qe2 {[%emt 0:02:23]} f6 {[%emt 0:00:13]} 19. Ne3 {[%emt 0:00:46]} Nf7 {[%emt 0:00:06]} 20. c4 {[%emt 0:03:52]} Nxd4 {[%emt 0:10:50]} 21. Nxd4 {[%emt 0:00:37]} dxc4 {[%emt 0:09:08]} 22. Bxc4 {[%emt 0:00:51]} Rxd4 {[%emt 0:00:11]} 23. Rac1 {[%emt 0:02:28]} e5 {[%emt 0:02:15]} 24. Nd5 {[%emt 0:08:24]} Qd8 {[%emt 0:05:27]} 25. Nc3 {[%emt 0:04:08]} a6 {[%emt 0:00:52]} 26. Ne4 {[%emt 0:02:41]} b6 {[%emt 0:03:46]} 27. Qf3 {[%emt 0:01:42]} f5 {[%emt 0:02:46]} 28. Qb3 {[%emt 0:02:45]} Qe7 {[%emt 0:10:55]} 29. Ng5 {[%emt 0:01:34]} Rxc4 {[%emt 0:00:11]} 30. Rxc4 {[%emt 0:00:18]} Qxg5 {[%emt 0:00:15]} 31. f4 {[%emt 0:01:08]} Qe7 {[%emt 0:00:18]} 32. Qxb6 {[%emt 0:00:25]} e4 {[%emt 0:01:41]} 33. Rfc1 {[%emt 0:00:15]} Qb7 {[%emt 0:01:46]} 34. Qxb7 {[%emt 0:00:25]} Bxb7 {[%emt 0:00:04]} 35. Bg3 {[%emt 0:01:00]} Bxb2 {[%emt 0:03:07]} 36. Rd1 {[%emt 0:00:01]} Bf6 {[%emt 0:02:59]} 37. Rc7 {[%emt 0:00:22]} Bc8 {[%emt 0:00:16]} 38. Be1 {[%emt 0:01:35]} Bd8 {[%emt 0:02:35]} 39. Rcc1 {[%emt 0:00:00]} Be6 {[%emt 0:00:00]} 40. a3 {[%emt 0:01:58]} Bb6+ {[%emt 0:13:12]} 41. Kh1 {[%emt 0:15:30]} Be3 {[%emt 0:15:30]} 42. Bd2 {[%emt 0:00:30]} Bf2 {[%emt 0:00:30]} 43. Rf1 {[%emt 0:00:30]} Bd4 {[%emt 0:00:30]} 44. Bb4 {[%emt 0:00:30]} Bb3 {[%emt 0:00:30]} 45. Rfe1 {[%emt 0:00:30]} Ba4 {[%emt 0:00:30]} 46. Bc3 {[%emt 0:00:30]} Bf2 {[%emt 0:00:30]} 47. Re2 {[%emt 0:00:30]} e3 {[%emt 0:00:30]} 48. Bd4 {[%emt 0:00:30]} Bb5 {[%emt 0:00:30]} 49. Rec2 {[%emt 0:00:30]} Bg3 {[%emt 0:00:30]} 50. Rc8 {[%emt 0:00:30]} e2 {[%emt 0:00:30]} 51. Rxe8+ {[%emt 0:00:30]} Bxe8 {[%emt 0:00:30]} 52. Bc3 {[%emt 0:00:30]} Bxf4 {[%emt 0:00:30]} 0-1

[Event "6th Cattolica Open 2019"]
[Site "Cattolica"]
[Date "2019.06.13"]
[Round "8.1"]
[White "Barseghyan, Harutyun"]
[Black "Martinez Alcantara, Jose Eduardo"]
[Result "1/2-1/2"]
[ECO "E32"]
[WhiteElo "2495"]
[BlackElo "2583"]
[Annotator "ChessBase"]
[PlyCount "42"]
[EventDate "2019.06.08"]
[EventType "swiss"]
[EventCountry "ITA"]
[SourceTitle "playchess.com"]
[Source "ChessBase"]
[SourceQuality "1"]
[TimeControl "40/5400+30:900+30"]

1. d4 {[%emt 0:00:00]} Nf6 {[%emt 0:00:00]} 2. c4 {[%emt 0:00:00]} e6 {[%emt 0:00:00]} 3. Nc3 {[%emt 0:00:01]} Bb4 {[%emt 0:00:00]} 4. Qc2 {[%emt 0:00:04]} d6 {[%emt 0:00:42]} 5. Nf3 {[%emt 0:00:46]} O-O {[%emt 0:01:52]} 6. g3 {[%emt 0:00:42]} b6 {[%emt 0:01:44]} 7. Bg2 {[%emt 0:00:43]} Bb7 {[%emt 0:00:07]} 8. O-O {[%emt 0:00:06]} Bxc3 {[%emt 0:05:31]} 9. Qxc3 {[%emt 0:00:11]} Nbd7 {[%emt 0:00:06]} 10. b3 {[%emt 0:00:21]} Be4 {[%emt 0:01:18]} 11. Bg5 {[%emt 0:00:41]} h6 {[%emt 0:00:44]} 12. Bxf6 {[%emt 0:00:08]} Nxf6 {[%emt 0:00:04]} 13. Rfd1 {[%emt 0:00:19]} a5 {[%emt 0:03:07]} 14. a4 {[%emt 0:00:31]} Qe7 {[%emt 0:04:52]} 15. Rac1 {[%emt 0:00:23]} Rfd8 {[%emt 0:00:40]} 16. Ne1 {[%emt 0:00:21]} Bxg2 {[%emt 0:00:55]} 17. Nxg2 {[%emt 0:00:03]} c5 {[%emt 0:02:35]} 18. Ne3 {[%emt 0:01:27]} cxd4 {[%emt 0:01:31]} 19. Qxd4 {[%emt 0:00:12]} Qc7 {[%emt 0:00:14]} 20. Ng4 {[%emt 0:01:22]} Nxg4 {[%emt 0:00:29]} 21. Qxg4 {[%emt 0:00:03]} Rac8 {[%emt 0:00:33]} 1/2-1/2